[Event "Early-Titled-Tuesday-Blitz-February-06-2024"]
[Site "Chess.com"]
[Date "2024.02.06"]
[Round "1"]
[White "NikitaShnadrygin"]
[Black "jcreyes69"]
[Result "0-1"]
[WhiteElo "2696"]
[BlackElo "2418"]
[TimeControl "180+1"]
[EndTime "8:07:57 PST"]
[Termination "jcreyes69 won by resignation"]

1. e4 {[%clk 0:03:00.9]} 1... c5 {[%clk 0:02:58.4]} 2. Nf3 {[%clk 0:02:58.9]}
2... e6 {[%clk 0:02:56.5]} 3. d4 {[%clk 0:02:57.5]} 3... cxd4 {[%clk 0:02:57.4]}
4. Nxd4 {[%clk 0:02:57.4]} 4... Nc6 {[%clk 0:02:58]} 5. Nc3 {[%clk 0:02:56.9]}
5... Qc7 {[%clk 0:02:57.3]} 6. Be3 {[%clk 0:02:54.5]} 6... a6 {[%clk 0:02:57.5]}
7. Be2 {[%clk 0:02:54.1]} 7... Nf6 {[%clk 0:02:57]} 8. O-O {[%clk 0:02:52.8]}
8... b5 {[%clk 0:02:57]} 9. a3 {[%clk 0:02:47.8]} 9... Bb7 {[%clk 0:02:56.5]}
10. f4 {[%clk 0:02:38.9]} 10... Bc5 {[%clk 0:02:45.9]} 11. e5 {[%clk 0:02:01.5]}
11... Qb6 {[%clk 0:01:58.5]} 12. exf6 {[%clk 0:01:25.5]} 12... Bxd4 {[%clk
0:01:53.9]} 13. Bxd4 {[%clk 0:01:21.9]} 13... Nxd4 {[%clk 0:01:54.8]} 14. Rf2
{[%clk 0:01:11.4]} 14... gxf6 {[%clk 0:01:51.6]} 15. Bd3 {[%clk 0:01:10.9]}
15... f5 {[%clk 0:01:44.8]} 16. Qh5 {[%clk 0:01:02.9]} 16... Rg8 {[%clk
0:01:34.3]} 17. Qxh7 {[%clk 0:00:46.2]} 17... O-O-O {[%clk 0:01:28.6]} 18. Kh1
{[%clk 0:00:20.6]} 18... Nf3 {[%clk 0:00:35.7]} 19. Raf1 {[%clk 0:00:07.3]}
19... Rh8 {[%clk 0:00:25]} 20. Qxh8 {[%clk 0:00:07.4]} 20... Rxh8 {[%clk
0:00:25.5]} 21. gxf3 {[%clk 0:00:08.3]} 21... Qe3 {[%clk 0:00:20.6]} 22. Ne2
{[%clk 0:00:07.1]} 22... Rh3 {[%clk 0:00:14.8]} 23. Ng1 {[%clk 0:00:05.7]} 23...
Rh4 {[%clk 0:00:12.2]} 24. Ne2 {[%clk 0:00:04.4]} 24... Kd8 {[%clk 0:00:12.3]}
25. Rg2 {[%clk 0:00:04.9]} 25... Bxf3 {[%clk 0:00:11.3]} 26. Rxf3 {[%clk
0:00:04.8]} 26... Qxf3 {[%clk 0:00:12.2]} 27. Kg1 {[%clk 0:00:05.7]} 27... Rg4
{[%clk 0:00:11.9]} 28. Rg3 {[%clk 0:00:05.4]} 28... Rxg3+ {[%clk 0:00:11.8]} 29.
hxg3 {[%clk 0:00:06.3]} 29... Qe3+ {[%clk 0:00:12]} 30. Kf1 {[%clk 0:00:06.6]}
30... Qd2 {[%clk 0:00:12]} 31. Kf2 {[%clk 0:00:06.2]} 31... Ke7 {[%clk
0:00:12.4]} 32. b3 {[%clk 0:00:03.8]} 32... Qa5 {[%clk 0:00:11.1]} 33. Nd4
{[%clk 0:00:02.1]} 33... Qxa3 {[%clk 0:00:10.5]} 34. Ke3 {[%clk 0:00:02.7]}
34... Qc5 {[%clk 0:00:10.5]} 35. c4 {[%clk 0:00:01.8]} 35... b4 {[%clk
0:00:09.8]} 36. Bc2 {[%clk 0:00:01.6]} 36... a5 {[%clk 0:00:09.7]} 37. Kd3
{[%clk 0:00:02.1]} 37... Qd6 {[%clk 0:00:08]} 38. Ke3 {[%clk 0:00:02.2]} 38...
Qc5 {[%clk 0:00:07.5]} 39. Kd3 {[%clk 0:00:02.5]} 39... Qc7 {[%clk 0:00:07.1]}
40. Nf3 {[%clk 0:00:01.3]} 40... Qb7 {[%clk 0:00:06.7]} 41. Ke2 {[%clk
0:00:01.6]} 41... a4 {[%clk 0:00:05.5]} 42. Ke3 {[%clk 0:00:02.1]} 42... axb3
{[%clk 0:00:05.4]} 43. Bxb3 {[%clk 0:00:03]} 43... Qe4+ {[%clk 0:00:05.5]} 44.
Kf2 {[%clk 0:00:03.5]} 44... Qb1 {[%clk 0:00:05.5]} 45. Nd2 {[%clk 0:00:03.4]}
45... Qb2 {[%clk 0:00:05.2]} 46. Ke2 {[%clk 0:00:04]} 46... Qc3 {[%clk
0:00:05.7]} 47. Kd1 {[%clk 0:00:04.2]} 47... Qxg3 {[%clk 0:00:06]} 48. Kc2
{[%clk 0:00:04.6]} 48... Qxf4 {[%clk 0:00:06.6]} 49. c5 {[%clk 0:00:05.5]} 49...
Qe3 {[%clk 0:00:06.8]} 0-1

[Event "Early-Titled-Tuesday-Blitz-February-06-2024"]
[Site "Chess.com"]
[Date "2024.02.06"]
[Round "1"]
[White "KhungThep"]
[Black "Chemim21"]
[Result "1-0"]
[WhiteElo "2588"]
[BlackElo "2217"]
[TimeControl "180+1"]
[EndTime "8:07:58 PST"]
[Termination "KhungThep won by resignation"]

1. d4 {[%clk 0:02:59.4]} 1... d5 {[%clk 0:02:59]} 2. c4 {[%clk 0:02:59.8]} 2...
c6 {[%clk 0:02:59.1]} 3. Nc3 {[%clk 0:03:00.1]} 3... e6 {[%clk 0:02:59.6]} 4.
cxd5 {[%clk 0:02:58.4]} 4... exd5 {[%clk 0:02:59.4]} 5. Qc2 {[%clk 0:02:53.8]}
5... Bd6 {[%clk 0:02:58.8]} 6. Nf3 {[%clk 0:02:52.9]} 6... Nf6 {[%clk
0:02:54.6]} 7. Bg5 {[%clk 0:02:51.1]} 7... Be6 {[%clk 0:02:52.8]} 8. e3 {[%clk
0:02:50.5]} 8... Nbd7 {[%clk 0:02:52.6]} 9. Bd3 {[%clk 0:02:47.8]} 9... Qa5
{[%clk 0:02:48.6]} 10. O-O {[%clk 0:02:44.8]} 10... h6 {[%clk 0:02:44.6]} 11.
Bh4 {[%clk 0:02:43.6]} 11... O-O {[%clk 0:02:44.5]} 12. a3 {[%clk 0:02:42.2]}
12... Qc7 {[%clk 0:02:41.6]} 13. Rfc1 {[%clk 0:02:34.5]} 13... a6 {[%clk
0:02:30]} 14. Bg3 {[%clk 0:02:24]} 14... Bxg3 {[%clk 0:02:29.1]} 15. hxg3 {[%clk
0:02:24.9]} 15... Qd6 {[%clk 0:02:25.6]} 16. Na4 {[%clk 0:02:13.2]} 16... Rfc8
{[%clk 0:02:15]} 17. Rab1 {[%clk 0:02:06.5]} 17... b5 {[%clk 0:02:07.4]} 18. Nc5
{[%clk 0:02:05]} 18... Nb6 {[%clk 0:02:05.6]} 19. b3 {[%clk 0:01:50.8]} 19... a5
{[%clk 0:01:58.5]} 20. a4 {[%clk 0:01:43.2]} 20... b4 {[%clk 0:01:44.5]} 21. Ne5
{[%clk 0:01:21.5]} 21... Rc7 {[%clk 0:01:25.3]} 22. Na6 {[%clk 0:01:02.7]} 22...
Rca7 {[%clk 0:01:15.1]} 23. Qxc6 {[%clk 0:00:27.7]} 23... Qxc6 {[%clk 0:01:14]}
24. Rxc6 {[%clk 0:00:26.7]} 24... Rxa6 {[%clk 0:01:14.4]} 25. Bxa6 {[%clk
0:00:26.4]} 25... Rxa6 {[%clk 0:01:15]} 26. Rbc1 {[%clk 0:00:21]} 26... Bd7
{[%clk 0:00:39.9]} 27. Nxd7 {[%clk 0:00:09.2]} 27... Nfxd7 {[%clk 0:00:39.8]}
28. Kf1 {[%clk 0:00:07]} 28... Ra8 {[%clk 0:00:36.2]} 29. Ke2 {[%clk 0:00:06.8]}
29... Rb8 {[%clk 0:00:32.9]} 30. Rc7 {[%clk 0:00:06.5]} 30... Nf6 {[%clk
0:00:30.1]} 31. f3 {[%clk 0:00:05.6]} 31... Kf8 {[%clk 0:00:22.2]} 32. Ra7
{[%clk 0:00:04.9]} 32... Nfd7 {[%clk 0:00:08.9]} 33. Rxa5 {[%clk 0:00:04.1]}
33... Ke7 {[%clk 0:00:09.3]} 34. Rb5 {[%clk 0:00:04.3]} 34... Kd6 {[%clk
0:00:09.2]} 35. a5 {[%clk 0:00:03.3]} 35... Na8 {[%clk 0:00:06.1]} 36. Rxb8
{[%clk 0:00:04.2]} 36... Nxb8 {[%clk 0:00:06.2]} 37. Rc8 {[%clk 0:00:04.9]}
37... Nc7 {[%clk 0:00:02.1]} 38. Rxb8 {[%clk 0:00:04.9]} 38... Na6 {[%clk
0:00:02.5]} 39. Rb6+ {[%clk 0:00:05.8]} 39... Kc7 {[%clk 0:00:02.4]} 40. Rxa6
{[%clk 0:00:06.7]} 40... Kb7 {[%clk 0:00:03.2]} 41. Rb6+ {[%clk 0:00:07.6]}
41... Ka7 {[%clk 0:00:03]} 42. Kd3 {[%clk 0:00:08.5]} 1-0

[Event "Early-Titled-Tuesday-Blitz-February-06-2024"]
[Site "Chess.com"]
[Date "2024.02.06"]
[Round "1"]
[White "Zainullina_Nataliya"]
[Black "Kazan28"]
[Result "0-1"]
[WhiteElo "2194"]
[BlackElo "2583"]
[TimeControl "180+1"]
[EndTime "8:07:58 PST"]
[Termination "Kazan28 won on time"]

1. e4 {[%clk 0:03:00]} 1... d6 {[%clk 0:02:57]} 2. d4 {[%clk 0:02:58.3]} 2...
Nf6 {[%clk 0:02:57.9]} 3. Nc3 {[%clk 0:02:57.5]} 3... e5 {[%clk 0:02:58.3]} 4.
Bc4 {[%clk 0:02:53.5]} 4... Be7 {[%clk 0:02:54.1]} 5. dxe5 {[%clk 0:02:53]} 5...
dxe5 {[%clk 0:02:51.9]} 6. Qxd8+ {[%clk 0:02:52.7]} 6... Bxd8 {[%clk 0:02:51.9]}
7. Nf3 {[%clk 0:02:52.9]} 7... Nbd7 {[%clk 0:02:47.2]} 8. O-O {[%clk 0:02:48.6]}
8... c6 {[%clk 0:02:47.3]} 9. a4 {[%clk 0:02:48.1]} 9... Ba5 {[%clk 0:02:45.3]}
10. Bd2 {[%clk 0:02:12.9]} 10... O-O {[%clk 0:02:33.5]} 11. Rfe1 {[%clk
0:02:11.6]} 11... h6 {[%clk 0:02:09.2]} 12. Rad1 {[%clk 0:02:09.2]} 12... Re8
{[%clk 0:02:07.7]} 13. Nb1 {[%clk 0:02:01.4]} 13... Bc7 {[%clk 0:01:59.3]} 14.
h3 {[%clk 0:01:55.9]} 14... Nc5 {[%clk 0:01:50.9]} 15. Nc3 {[%clk 0:01:47.6]}
15... Ba5 {[%clk 0:01:50.2]} 16. b3 {[%clk 0:01:34.5]} 16... Bb4 {[%clk
0:01:41.6]} 17. Na2 {[%clk 0:01:27.8]} 17... Bxd2 {[%clk 0:01:41.2]} 18. Nxd2
{[%clk 0:01:26.2]} 18... Be6 {[%clk 0:01:40.9]} 19. Bxe6 {[%clk 0:01:20.2]}
19... Nxe6 {[%clk 0:01:41.8]} 20. f3 {[%clk 0:01:19.8]} 20... Nd4 {[%clk
0:01:41.3]} 21. c3 {[%clk 0:01:12.4]} 21... Ne6 {[%clk 0:01:41.2]} 22. Kf2
{[%clk 0:01:12.4]} 22... Nf4 {[%clk 0:01:28]} 23. Nc4 {[%clk 0:01:11.2]} 23...
Rad8 {[%clk 0:01:25.7]} 24. Nc1 {[%clk 0:00:51.6]} 24... Ng6 {[%clk 0:01:12.9]}
25. Nd6 {[%clk 0:00:49.5]} 25... Re7 {[%clk 0:01:10.4]} 26. Rd2 {[%clk
0:00:44.4]} 26... Red7 {[%clk 0:01:09.8]} 27. Red1 {[%clk 0:00:44.6]} 27... Ne8
{[%clk 0:01:08.3]} 28. Nc4 {[%clk 0:00:42.7]} 28... Rxd2+ {[%clk 0:01:07.6]} 29.
Rxd2 {[%clk 0:00:42.5]} 29... Rxd2+ {[%clk 0:01:07.5]} 30. Nxd2 {[%clk
0:00:42.6]} 30... Nd6 {[%clk 0:01:06.7]} 31. g3 {[%clk 0:00:40.6]} 31... h5
{[%clk 0:01:06.8]} 32. Ke3 {[%clk 0:00:40.5]} 32... h4 {[%clk 0:01:06.8]} 33.
gxh4 {[%clk 0:00:36.4]} 33... Nxh4 {[%clk 0:01:07.3]} 34. Nd3 {[%clk 0:00:31.5]}
34... f6 {[%clk 0:01:07.6]} 35. Nc5 {[%clk 0:00:30.4]} 35... g5 {[%clk
0:01:07.5]} 36. b4 {[%clk 0:00:27.1]} 36... Ng2+ {[%clk 0:01:07.2]} 37. Kf2
{[%clk 0:00:26.5]} 37... Nf4 {[%clk 0:01:08.1]} 38. Kg3 {[%clk 0:00:26]} 38...
Ne2+ {[%clk 0:01:07.1]} 39. Kg4 {[%clk 0:00:17.9]} 39... Nxc3 {[%clk 0:01:08]}
40. h4 {[%clk 0:00:13.2]} 40... gxh4 {[%clk 0:01:06.2]} 41. Kxh4 {[%clk
0:00:13.4]} 41... b6 {[%clk 0:01:05]} 42. Nd7 {[%clk 0:00:13]} 42... Kf7 {[%clk
0:01:05.6]} 43. a5 {[%clk 0:00:12.4]} 43... bxa5 {[%clk 0:00:54.3]} 44. bxa5
{[%clk 0:00:12.3]} 44... Ne2 {[%clk 0:00:49.7]} 45. Nc5 {[%clk 0:00:10.7]} 45...
Nd4 {[%clk 0:00:49]} 46. Kg3 {[%clk 0:00:09.9]} 46... Ke7 {[%clk 0:00:47.6]} 47.
f4 {[%clk 0:00:09.6]} 47... Ne2+ {[%clk 0:00:47.4]} 48. Kg4 {[%clk 0:00:09.8]}
48... Nxf4 {[%clk 0:00:48.3]} 49. Ndb3 {[%clk 0:00:08.9]} 49... Ne6 {[%clk
0:00:47.3]} 50. Nd3 {[%clk 0:00:07.9]} 50... Nxe4 {[%clk 0:00:46.6]} 51. Kf5
{[%clk 0:00:07.4]} 51... Nd6+ {[%clk 0:00:46.7]} 52. Kg4 {[%clk 0:00:07.1]}
52... Nb5 {[%clk 0:00:43.4]} 53. Nd2 {[%clk 0:00:02.5]} 53... Nbd4 {[%clk
0:00:43.4]} 54. Nc4 {[%clk 0:00:02.3]} 54... e4 {[%clk 0:00:36.8]} 55. Nb4
{[%clk 0:00:02]} 55... f5+ {[%clk 0:00:37.7]} 56. Kg3 {[%clk 0:00:01.7]} 56...
f4+ {[%clk 0:00:37.7]} 57. Kf2 {[%clk 0:00:01.5]} 57... e3+ {[%clk 0:00:37.9]}
0-1

[Event "Early-Titled-Tuesday-Blitz-February-06-2024"]
[Site "Chess.com"]
[Date "2024.02.06"]
[Round "1"]
[White "Cubitas"]
[Black "VitaliyChayka"]
[Result "1-0"]
[WhiteElo "2718"]
[BlackElo "2397"]
[TimeControl "180+1"]
[EndTime "8:08:02 PST"]
[Termination "Cubitas won on time"]

1. e4 {[%clk 0:03:00.9]} 1... d6 {[%clk 0:03:00.3]} 2. d4 {[%clk 0:02:59.9]}
2... Nf6 {[%clk 0:03:01]} 3. Nc3 {[%clk 0:02:59.9]} 3... e5 {[%clk 0:03:01.8]}
4. Nf3 {[%clk 0:02:59.4]} 4... Nbd7 {[%clk 0:03:02.2]} 5. Bc4 {[%clk 0:02:58.4]}
5... Be7 {[%clk 0:03:02.6]} 6. a4 {[%clk 0:02:57.7]} 6... O-O {[%clk 0:03:02.9]}
7. a5 {[%clk 0:02:57.8]} 7... c6 {[%clk 0:03:02.9]} 8. O-O {[%clk 0:02:57.2]}
8... Rb8 {[%clk 0:02:57.8]} 9. Re1 {[%clk 0:02:55.2]} 9... b5 {[%clk 0:02:57.9]}
10. axb6 {[%clk 0:02:55.3]} 10... axb6 {[%clk 0:02:58.8]} 11. Bb3 {[%clk
0:02:51.4]} 11... b5 {[%clk 0:02:57.6]} 12. h3 {[%clk 0:02:36.9]} 12... Qc7
{[%clk 0:02:56.7]} 13. Nh4 {[%clk 0:02:28.5]} 13... Nb6 {[%clk 0:02:54.3]} 14.
dxe5 {[%clk 0:02:24.1]} 14... dxe5 {[%clk 0:02:54]} 15. Qf3 {[%clk 0:02:22.3]}
15... Be6 {[%clk 0:02:31.6]} 16. Nf5 {[%clk 0:02:18.7]} 16... Bxf5 {[%clk
0:02:28.7]} 17. Qxf5 {[%clk 0:02:15.5]} 17... b4 {[%clk 0:02:06]} 18. Na4 {[%clk
0:02:09.1]} 18... Ra8 {[%clk 0:02:00.8]} 19. Be3 {[%clk 0:02:08.6]} 19... Nxa4
{[%clk 0:01:54.6]} 20. Rxa4 {[%clk 0:01:59.6]} 20... Rxa4 {[%clk 0:01:50.8]} 21.
Bxa4 {[%clk 0:02:00.4]} 21... c5 {[%clk 0:01:51.4]} 22. g4 {[%clk 0:01:47.8]}
22... c4 {[%clk 0:01:36.7]} 23. g5 {[%clk 0:01:38.8]} 23... g6 {[%clk 0:01:37]}
24. Qf3 {[%clk 0:01:34.4]} 24... Nh5 {[%clk 0:01:36]} 25. b3 {[%clk 0:01:30]}
25... c3 {[%clk 0:01:34.7]} 26. Bb5 {[%clk 0:01:29.3]} 26... Nf4 {[%clk
0:01:32.6]} 27. Bxf4 {[%clk 0:01:24.2]} 27... exf4 {[%clk 0:01:33.5]} 28. h4
{[%clk 0:01:11.7]} 28... Qe5 {[%clk 0:01:33.4]} 29. Bc4 {[%clk 0:01:11.5]} 29...
Rd8 {[%clk 0:01:33.3]} 30. Ra1 {[%clk 0:01:10.2]} 30... Bc5 {[%clk 0:01:30]} 31.
Bd5 {[%clk 0:01:00.4]} 31... Kg7 {[%clk 0:01:22.1]} 32. Kg2 {[%clk 0:00:59.6]}
32... Bb6 {[%clk 0:00:41.8]} 33. Ra4 {[%clk 0:00:55.3]} 33... Bc5 {[%clk
0:00:41.5]} 34. Ra5 {[%clk 0:00:54.6]} 34... Bd6 {[%clk 0:00:38.7]} 35. Ra7
{[%clk 0:00:53.9]} 35... Be7 {[%clk 0:00:36.6]} 36. Qg4 {[%clk 0:00:47.2]} 36...
Kf8 {[%clk 0:00:34.7]} 37. Rb7 {[%clk 0:00:33.4]} 37... Qd6 {[%clk 0:00:27.1]}
38. Kf3 {[%clk 0:00:30.4]} 38... Rb8 {[%clk 0:00:23.6]} 39. Rd7 {[%clk
0:00:26.9]} 39... Qe5 {[%clk 0:00:21.8]} 40. Qxf4 {[%clk 0:00:26.9]} 40... Qxf4+
{[%clk 0:00:20.6]} 41. Kxf4 {[%clk 0:00:27.8]} 41... Ke8 {[%clk 0:00:15.9]} 42.
Ra7 {[%clk 0:00:25]} 42... Rb6 {[%clk 0:00:08.6]} 43. f3 {[%clk 0:00:21.9]}
43... Rb8 {[%clk 0:00:07.4]} 44. Kg4 {[%clk 0:00:21.7]} 44... Kf8 {[%clk
0:00:04.4]} 45. f4 {[%clk 0:00:21.7]} 45... Rd8 {[%clk 0:00:02.4]} 46. h5 {[%clk
0:00:21.5]} 46... Rb8 {[%clk 0:00:01.4]} 47. h6 {[%clk 0:00:20.3]} 47... Ke8
{[%clk 0:00:02]} 48. f5 {[%clk 0:00:20.4]} 48... Kf8 {[%clk 0:00:02]} 49. f6
{[%clk 0:00:20.4]} 49... Bc5 {[%clk 0:00:02.3]} 50. Rxf7+ {[%clk 0:00:20.1]}
50... Ke8 {[%clk 0:00:02.9]} 51. Rxh7 {[%clk 0:00:20.4]} 51... Rb6 {[%clk
0:00:01.5]} 52. Rh8+ {[%clk 0:00:18.3]} 52... Bf8 {[%clk 0:00:01.8]} 53. h7
{[%clk 0:00:17.9]} 1-0

[Event "Early-Titled-Tuesday-Blitz-February-06-2024"]
[Site "Chess.com"]
[Date "2024.02.06"]
[Round "1"]
[White "Kotofeyca"]
[Black "Vaibhavraut99"]
[Result "0-1"]
[WhiteElo "2407"]
[BlackElo "2732"]
[TimeControl "180+1"]
[EndTime "8:08:03 PST"]
[Termination "Vaibhavraut99 won on time"]

1. d4 {[%clk 0:03:00.9]} 1... Nf6 {[%clk 0:02:59.6]} 2. c4 {[%clk 0:03:00.5]}
2... e6 {[%clk 0:02:59.7]} 3. Nf3 {[%clk 0:03:00.4]} 3... Bb4+ {[%clk
0:02:59.9]} 4. Nbd2 {[%clk 0:03:00.3]} 4... O-O {[%clk 0:02:58.9]} 5. a3 {[%clk
0:02:59.4]} 5... Bxd2+ {[%clk 0:02:59.4]} 6. Bxd2 {[%clk 0:03:00.3]} 6... b6
{[%clk 0:02:59.7]} 7. Bg5 {[%clk 0:03:00.7]} 7... Bb7 {[%clk 0:02:58.9]} 8. e3
{[%clk 0:03:00.9]} 8... h6 {[%clk 0:02:58.4]} 9. Bh4 {[%clk 0:03:00.6]} 9... d6
{[%clk 0:02:58.7]} 10. Qc2 {[%clk 0:02:58.8]} 10... Nbd7 {[%clk 0:02:58.4]} 11.
Be2 {[%clk 0:02:55.1]} 11... Qe7 {[%clk 0:02:54.6]} 12. O-O {[%clk 0:02:54.9]}
12... a5 {[%clk 0:02:51.4]} 13. b4 {[%clk 0:02:54]} 13... g5 {[%clk 0:02:49.5]}
14. Bg3 {[%clk 0:02:53.2]} 14... Ne4 {[%clk 0:02:49.4]} 15. Nd2 {[%clk
0:02:47.4]} 15... Nxg3 {[%clk 0:02:43.8]} 16. fxg3 {[%clk 0:02:40.4]} 16... f5
{[%clk 0:02:32.2]} 17. e4 {[%clk 0:02:38]} 17... fxe4 {[%clk 0:02:25.1]} 18.
Nxe4 {[%clk 0:02:38.9]} 18... Qg7 {[%clk 0:02:24.5]} 19. Rxf8+ {[%clk
0:02:11.1]} 19... Nxf8 {[%clk 0:02:22.4]} 20. Rd1 {[%clk 0:02:11.6]} 20... axb4
{[%clk 0:02:22]} 21. axb4 {[%clk 0:02:12.5]} 21... Ra1 {[%clk 0:02:21.8]} 22.
Qd3 {[%clk 0:01:57.3]} 22... Rxd1+ {[%clk 0:02:20]} 23. Bxd1 {[%clk 0:01:58.2]}
23... Nd7 {[%clk 0:02:17.1]} 24. Bf3 {[%clk 0:01:52.9]} 24... Bxe4 {[%clk
0:02:11.1]} 25. Qxe4 {[%clk 0:01:43.7]} 25... Qf6 {[%clk 0:02:03.6]} 26. h3
{[%clk 0:01:37.8]} 26... c5 {[%clk 0:01:37.6]} 27. dxc5 {[%clk 0:01:35.7]} 27...
dxc5 {[%clk 0:01:35.8]} 28. Qc6 {[%clk 0:01:27.9]} 28... Qd4+ {[%clk 0:01:35.1]}
29. Kh2 {[%clk 0:01:27.1]} 29... Kf7 {[%clk 0:01:35.6]} 30. b5 {[%clk 0:01:19]}
30... Ke7 {[%clk 0:01:29.4]} 31. Bg4 {[%clk 0:00:57.9]} 31... Qxc4 {[%clk
0:01:24]} 32. Bh5 {[%clk 0:00:35.7]} 32... Qd5 {[%clk 0:00:58]} 33. Qc8 {[%clk
0:00:35.4]} 33... c4 {[%clk 0:00:48.3]} 34. Qe8+ {[%clk 0:00:32.2]} 34... Kd6
{[%clk 0:00:48.4]} 35. Bf3 {[%clk 0:00:29.3]} 35... Qxb5 {[%clk 0:00:41.7]} 36.
Qh8 {[%clk 0:00:14.5]} 36... Qe5 {[%clk 0:00:38.3]} 37. Qa8 {[%clk 0:00:07.7]}
37... c3 {[%clk 0:00:30.6]} 38. Qc6+ {[%clk 0:00:06.9]} 38... Ke7 {[%clk
0:00:30.4]} 39. Qc8 {[%clk 0:00:03.7]} 39... h5 {[%clk 0:00:18.2]} 40. Bc6
{[%clk 0:00:04.1]} 40... Nf6 {[%clk 0:00:07.4]} 41. Qb7+ {[%clk 0:00:03]} 41...
Kf8 {[%clk 0:00:07]} 42. Qxb6 {[%clk 0:00:02.1]} 42... Qd6 {[%clk 0:00:04.9]}
0-1

[Event "Early-Titled-Tuesday-Blitz-February-06-2024"]
[Site "Chess.com"]
[Date "2024.02.06"]
[Round "1"]
[White "adapodadei"]
[Black "Quattroporte300"]
[Result "1-0"]
[WhiteElo "2715"]
[BlackElo "2394"]
[TimeControl "180+1"]
[EndTime "8:08:03 PST"]
[Termination "adapodadei won by resignation"]

1. e4 {[%clk 0:03:00.9]} 1... c5 {[%clk 0:02:58.9]} 2. Nc3 {[%clk 0:03:00.7]}
2... Nc6 {[%clk 0:02:58]} 3. g3 {[%clk 0:03:01.1]} 3... e5 {[%clk 0:02:54.5]} 4.
Bg2 {[%clk 0:02:59]} 4... g6 {[%clk 0:02:55]} 5. d3 {[%clk 0:02:55.5]} 5... Bg7
{[%clk 0:02:55.5]} 6. Nge2 {[%clk 0:02:55.3]} 6... Nge7 {[%clk 0:02:55.4]} 7.
O-O {[%clk 0:02:52.5]} 7... O-O {[%clk 0:02:55.8]} 8. Be3 {[%clk 0:02:52.8]}
8... d6 {[%clk 0:02:53.7]} 9. Nd5 {[%clk 0:02:51.3]} 9... Nxd5 {[%clk
0:02:50.9]} 10. exd5 {[%clk 0:02:52.2]} 10... Ne7 {[%clk 0:02:51]} 11. f4 {[%clk
0:02:51.5]} 11... exf4 {[%clk 0:02:32.2]} 12. Bxf4 {[%clk 0:02:52.4]} 12... Bxb2
{[%clk 0:02:30.9]} 13. Rb1 {[%clk 0:02:52.5]} 13... Bg7 {[%clk 0:02:29.3]} 14.
Bg5 {[%clk 0:02:43.4]} 14... h6 {[%clk 0:02:24.6]} 15. Bd2 {[%clk 0:02:39.6]}
15... Rb8 {[%clk 0:02:19]} 16. Nc3 {[%clk 0:02:29.6]} 16... a6 {[%clk
0:02:12.1]} 17. a4 {[%clk 0:02:17.2]} 17... Kh7 {[%clk 0:02:05.8]} 18. Kh1
{[%clk 0:02:11.5]} 18... f5 {[%clk 0:01:59.9]} 19. Ne2 {[%clk 0:02:10]} 19... b5
{[%clk 0:01:56.6]} 20. axb5 {[%clk 0:02:01.8]} 20... axb5 {[%clk 0:01:57.5]} 21.
Nf4 {[%clk 0:02:01.5]} 21... b4 {[%clk 0:01:51.6]} 22. c3 {[%clk 0:01:44]} 22...
g5 {[%clk 0:01:14]} 23. Nh5 {[%clk 0:01:42.6]} 23... Ba6 {[%clk 0:01:12.9]} 24.
Nxg7 {[%clk 0:01:40.7]} 24... Kxg7 {[%clk 0:01:12.6]} 25. cxb4 {[%clk
0:01:40.5]} 25... Qc7 {[%clk 0:00:59.8]} 26. Bc3+ {[%clk 0:01:36.3]} 26... Kh7
{[%clk 0:00:59.8]} 27. bxc5 {[%clk 0:01:23.8]} 27... dxc5 {[%clk 0:00:51.5]} 28.
Rc1 {[%clk 0:01:21.3]} 28... Qd7 {[%clk 0:00:35.2]} 29. Be5 {[%clk 0:01:11]}
29... Nxd5 {[%clk 0:00:32.8]} 30. Bxb8 {[%clk 0:01:07.2]} 30... Ne3 {[%clk
0:00:31.8]} 31. Qe2 {[%clk 0:00:52.6]} 31... Nxf1 {[%clk 0:00:16.3]} 32. Be5
{[%clk 0:00:42]} 32... Bxd3 {[%clk 0:00:15]} 33. Qd2 {[%clk 0:00:42.2]} 33...
Re8 {[%clk 0:00:05.4]} 34. Bxf1 {[%clk 0:00:34.2]} 34... Rxe5 {[%clk 0:00:02.9]}
35. Qxd3 {[%clk 0:00:31.5]} 35... Rd5 {[%clk 0:00:03.4]} 36. Qf3 {[%clk
0:00:24.6]} 36... Rd2 {[%clk 0:00:03.5]} 37. Rxc5 {[%clk 0:00:20.8]} 37... Kg6
{[%clk 0:00:03.8]} 38. Rc6+ {[%clk 0:00:20.3]} 38... Kg7 {[%clk 0:00:04]} 39.
Rc1 {[%clk 0:00:20.6]} 39... f4 {[%clk 0:00:03]} 40. gxf4 {[%clk 0:00:20.1]}
40... g4 {[%clk 0:00:03.7]} 41. Qc3+ {[%clk 0:00:19.3]} 41... Kh7 {[%clk
0:00:03.5]} 42. Bg2 {[%clk 0:00:19.4]} 42... Rf2 {[%clk 0:00:02.2]} 43. Qg3
{[%clk 0:00:15.4]} 43... Rd2 {[%clk 0:00:01.8]} 44. Rf1 {[%clk 0:00:15.4]} 44...
Rd1 {[%clk 0:00:01.9]} 45. Qf2 {[%clk 0:00:13.1]} 45... Re1 {[%clk 0:00:02.2]}
46. Qxe1 {[%clk 0:00:13.1]} 1-0